bitfinex/quotes_SOLUSD_20260222
["timestamp","ask_amount","ask_price","bid_price","bid_amount"]
[1771732211468,4.24371787,85.14,85.107,0.91382982]
[1771732212385,4.24371787,85.13,85.107,0.91382982]
[1771732213387,4.24371787,85.15,85.108,11.74977675]
[1771732213578,41.38391331,85.159,85.111,0.91382982]
[1771732216779,41.38391331,85.159,85.113,0.91382982]
[1771732219985,4.24371787,85.15,85.115,0.91382982]
[1771732221486,11.74411913,85.149,85.115,0.91382982]
[1771732221874,4.24371787,85.14,85.114,11.74894846]
[1771732224687,4.24371787,85.14,85.104,8.25790821]
[1771732224987,15.9892089,85.14,85.105,0.91382982]
[1771732225795,11.74549103,85.14,85.105,0.91382982]
[1771732226100,11.744561,85.146,85.111,0.91382982]
[1771732227583,0.28432314,85.157,85.113,0.91382982]
[1771732229692,0.28432314,85.155,85.115,0.91382982]
[1771732229994,4.24371787,85.15,85.115,0.91382982]
[1771732241482,11.74411913,85.149,85.116,11.7486724]
[1771732241781,11.74411913,85.149,85.117,0.91382982]
[1771732245800,11.74342955,85.154,85.117,0.91382982]
[1771732247999,11.74342955,85.154,85.118,11.74839634]
[1771732248299,11.74342955,85.154,85.119,0.91382982]
[1771732248503,11.74274005,85.159,85.119,0.91382982]
[1771732250889,11.74274005,85.159,85.121,0.91382982]
[1771732253686,4.30847599,85.16,85.123,0.91382982]
[1771732257408,0.06475812,85.16,85.131,0.91382982]
[1771732257886,0.1,85.17,85.141,0.91382982]
[1771732258084,0.1,85.17,85.151,0.91382982]
[1771732260006,4.3401404,85.17,85.133,9.17173803]
[1771732260191,4.3401404,85.17,85.134,12.66001818]
[1771732260392,4.3401404,85.17,85.135,0.91382982]
[1771732261104,4.2401404,85.16,85.135,0.91382982]
[1771732262114,4.2401404,85.15,85.11,0.91382982]
[1771732262294,4.2401404,85.14,85.11,0.91382982]
[1771732263104,0.1,85.17,85.111,0.91382982]
[1771732263105,4.2401404,85.15,85.111,0.91382982]
[1771732264710,4.2401404,85.16,85.113,0.91382982]
[1771732265992,4.2401404,85.16,85.12,4.2401404]
[1771732266198,4.2401404,85.16,85.121,0.91382982]
[1771732266612,11.74189017,85.166,85.123,0.91382982]
[1771732266818,11.74189017,85.166,85.131,0.91382982]
[1771732269015,11.74189017,85.166,85.133,0.91382982]
[1771732269202,4.2401404,85.16,85.133,0.91382982]
[1771732271620,4.2401404,85.15,85.123,8.25790821]
[1771732271805,4.2401404,85.14,85.123,8.25790821]
[1771732272005,4.2401404,85.14,85.116,0.91382982]
[1771732276223,4.2401404,85.14,85.118,0.91382982]
[1771732276719,11.74549853,85.139,85.118,0.91382982]
[1771732279720,11.74549853,85.139,85.101,0.91382982]
[1771732279721,4.2401404,85.13,85.101,0.91382982]
[1771732279923,4.2401404,85.12,85.101,0.91382982]
[1771732281810,4.2401404,85.12,85.096,0.91382982]
[1771732284108,4.2401404,85.12,85.097,0.91382982]
[1771732290038,4.2401404,85.12,85.099,0.91382982]
[1771732292630,4.2401404,85.13,85.101,0.91382982]
[1771732293134,11.74687826,85.129,85.101,0.91382982]
[1771732303830,0.28432314,85.136,85.101,0.91382982]
[1771732304637,0.28432314,85.136,85.102,11.75060515]
[1771732304835,0.28432314,85.136,85.103,0.91382982]
[1771732307228,0.28432314,85.148,85.111,0.91382982]
[1771732312143,0.28432314,85.146,85.112,0.91382982]
[1771732316337,0.28432314,85.144,85.112,0.91382982]
[1771732319444,2.54694694,85.14,85.112,0.91382982]
[1771732320047,2.54688614,85.14,85.112,0.91382982]
[1771732320239,2.54688614,85.13,85.106,0.91382982]
[1771732321744,2.54688614,85.14,85.107,11.74991481]
[1771732322048,2.54688614,85.14,85.108,0.91382982]
[1771732325029,11.74549853,85.139,85.108,0.91382982]
[1771732332763,0.28432314,85.138,85.108,0.91382982]
[1771732336771,0.28432314,85.136,85.108,0.91382982]
[1771732342069,0.28432314,85.134,85.108,0.91382982]
[1771732345988,11.74632633,85.133,85.108,0.91382982]
[1771732348569,0.28432314,85.137,85.108,0.91382982]
[1771732350890,0.28432314,85.135,85.108,0.91382982]
[1771732354486,11.74618836,85.134,85.108,0.91382982]
[1771732371407,0.28432314,85.137,85.108,0.91382982]
[1771732375508,0.28432314,85.135,85.108,0.91382982]
[1771732377712,11.74591242,85.136,85.11,0.91382982]
[1771732378711,11.74591242,85.136,85.111,0.91382982]
[1771732379915,29.36236684,85.143,85.111,0.91382982]
[1771732398431,5.36086188,85.159,85.111,0.91382982]
[1771732398724,0.28432314,85.158,85.111,0.91382982]
[1771732398910,0.28432314,85.149,85.111,0.91382982]
[1771732403026,0.28432314,85.147,85.111,0.91382982]
[1771732404128,11.74453291,85.146,85.113,0.91382982]
[1771732410047,11.74453291,85.146,85.115,0.91382982]
[1771732412342,11.74453291,85.146,85.117,0.91382982]
[1771732418652,41.38391331,85.159,85.121,0.91382982]
[1771732420346,11.74136129,85.169,85.141,0.91382982]
[1771732422360,3.07081754,85.17,85.141,0.91382982]
[1771732423438,11.74136129,85.169,85.141,0.91382982]
[1771732424738,0.1,85.17,85.141,0.91382982]
[1771732425841,3.07081754,85.17,85.141,0.91382982]
[1771732430553,11.74136129,85.169,85.141,0.91382982]
[1771732435964,0.1,85.17,85.141,0.91382982]
[1771732436168,0.1,85.17,85.143,0.91382982]
[1771732454287,0.1,85.17,85.145,0.91382982]
[1771732476709,0.1,85.17,85.147,0.91382982]
[1771732488099,2.96817427,85.16,85.104,0.91382982]
[1771732488409,2.96817427,85.13,85.097,0.91382982]
[1771732488599,2.96817427,85.13,85.069,52.88]
[1771732488600,2.96817427,85.11,85.076,0.91382982]
[1771732489104,0.28432314,85.119,85.077,0.91382982]
[1771732489820,2.96817427,85.11,85.077,0.91382982]
[1771732490010,11.74963869,85.109,85.077,0.91382982]
[1771732499246,5.36086188,85.134,85.061,8.25790821]
[1771732499247,11.74897486,85.114,85.081,0.91382982]
[1771732500546,29.36165084,85.146,85.091,0.91382982]
[1771732500862,2.96817427,85.13,85.101,0.91382982]
[1771732501231,11.74687826,85.129,85.101,0.91382982]
[1771732501430,2.96817427,85.12,85.101,0.91382982]
[1771732501746,2.96817427,85.12,85.092,0.91382982]
[1771732502066,2.97293302,85.1,85.073,0.91382982]
[1771732502236,2.97293302,85.11,85.073,0.91382982]
[1771732504743,11.74963869,85.109,85.075,0.91382982]
[1771732506554,11.74963869,85.109,85.081,0.91382982]
[1771732508053,11.74963869,85.109,85.064,8.25790821]
[1771732508054,11.74963869,85.109,85.069,0.91382982]
[1771732508260,2.97293302,85.1,85.069,0.91382982]
[1771732509248,2.97293302,85.09,85.069,0.91382982]
[1771732510255,2.97293302,85.1,85.069,0.91382982]
[1771732511441,11.7510194,85.099,85.069,0.91382982]
[1771732511843,2.97293302,85.09,85.069,0.91382982]
[1771732514160,11.75240042,85.089,85.061,0.91382982]
[1771732526266,41.13340148,85.089,85.06,0.2]
[1771732526461,2.97293302,85.08,85.06,0.2]
[1771732529951,11.75378177,85.079,85.06,1.11382982]
[1771732536185,0.28432314,85.088,85.06,1.11382982]
[1771732538288,0.28432314,85.086,85.06,1.11382982]
[1771732541272,0.28432314,85.084,85.06,1.11382982]
[1771732544894,11.75322919,85.083,85.06,1.11382982]
[1771732558789,29.37815131,85.098,85.06,1.11382982]
[1771732559210,0.28432314,85.097,85.061,0.91382982]
[1771732561316,0.28432314,85.095,85.061,0.91382982]
[1771732562903,2.97293302,85.12,85.063,0.91382982]
[1771732563237,2.97293302,85.11,85.081,0.91382982]
[1771732563930,29.37409674,85.109,85.081,0.91382982]
[1771732565005,0.28432314,85.108,85.081,0.91382982]
[1771732565198,2.97317178,85.1,85.063,0.91382982]
[1771732571210,11.7510194,85.099,85.065,0.91382982]
[1771732578629,11.7510194,85.099,85.067,0.91382982]
[1771732578812,11.7510194,85.099,85.071,0.91382982]
[1771732579018,41.12470184,85.107,85.071,0.91382982]
[1771732579419,2.97317178,85.1,85.071,0.91382982]
[1771732582927,11.7510194,85.099,85.071,0.91382982]
[1771732583425,41.11407392,85.129,85.073,0.91382982]
[1771732583748,2.97317178,85.12,85.081,0.91382982]
[1771732583922,0.28432314,85.119,85.081,0.91382982]
[1771732585345,2.97317178,85.11,85.081,0.91382982]
[1771732587421,11.74963869,85.109,85.081,0.91382982]
[1771732595249,11.50963869,85.109,85.077,0.91382982]
[1771732595440,2.97317178,85.1,85.077,0.91382982]
[1771732599235,0.28432314,85.108,85.077,0.91382982]
[1771732599431,2.97317178,85.1,85.077,0.91382982]
[1771732600347,11.7510194,85.099,85.077,0.91382982]
[1771732601645,11.7510194,85.099,85.06,0.2]
[1771732601646,0.32185281,85.089,85.06,0.2]
[1771732602444,0.32135407,85.087,85.06,0.2]
[1771732603551,0.32135407,85.087,85.061,0.57925243]
[1771732621763,0.31302736,85.085,85.061,0.57925243]
[1771732630774,0.30932346,85.083,85.061,0.57925243]
[1771732630954,0.30932346,85.079,85.06,0.2]
[1771732631672,0.30862949,85.077,85.06,0.76939021]
[1771732632565,0.30862949,85.077,85.06,0.2]
[1771732632764,0.30862949,85.077,85.061,0.56939021]
[1771732635665,0.30560676,85.075,85.061,0.56939021]
[1771732636558,11.75419624,85.076,85.061,0.56939021]
[1771732640660,0.30132153,85.081,85.061,0.56939021]
[1771732643081,11.75364362,85.08,85.061,0.56939021]
[1771732650464,2.97455623,85.09,85.06,0.2]
[1771732650466,0.29345337,85.11,85.063,0.56939021]
[1771732650772,11.74936259,85.111,85.081,0.56939021]
[1771732651382,0.29270837,85.11,85.081,0.56939021]
[1771732652579,11.74963869,85.109,85.081,0.56939021]
[1771732652785,0.29198199,85.108,85.081,0.56939021]
[1771732654984,0.29198199,85.108,85.083,0.56939021]
[1771732657185,0.28913253,85.112,85.083,0.56939021]
[1771732661874,0.28511859,85.11,85.083,0.56939021]
[1771732663986,11.74839634,85.118,85.091,0.55227733]
[1771732664194,12.03224281,85.118,85.091,0.55227733]
[1771732664391,0.28322121,85.117,85.091,0.55227733]
[1771732665798,0.28322121,85.117,85.093,0.55227733]
[1771732668190,11.7486724,85.116,85.093,0.55227733]
[1771732669692,2.97455623,85.12,85.093,0.55227733]
[1771732669693,11.74894846,85.114,85.093,0.55227733]
[1771732669892,0.28018536,85.109,85.081,0.55227733]
[1771732673599,0.27787912,85.107,85.081,0.55227733]
[1771732675881,11.74977675,85.108,85.083,0.55227733]
[1771732676487,11.74909584,85.113,85.083,0.55227733]
[1771732680807,0.27409717,85.113,85.083,0.55227733]
[1771732681101,0.27409717,85.099,85.073,0.55227733]
[1771732682193,0.2730817,85.097,85.073,0.55227733]
[1771732692104,0.26788352,85.095,85.073,0.55227733]
[1771732699020,11.75143367,85.096,85.073,0.55227733]
[1771732704516,12.01396277,85.096,85.073,0.55227733]
[1771732709602,11.75143367,85.096,85.073,0.55227733]
[1771732709907,0.2606666,85.117,85.081,0.56905185]
[1771732720421,11.7486724,85.116,85.082,11.75336733]
[1771732720620,0.25663456,85.115,85.083,0.58065611]
[1771732723732,0.25571342,85.113,85.083,0.58065611]
[1771732726527,0.254824,85.111,85.083,0.58065611]
[1771732731540,11.74950064,85.11,85.083,0.58065611]
[1771732732139,12.0028987,85.11,85.083,0.58065611]
[1771732732825,0.2531239,85.114,85.083,0.58065611]
[1771732733033,0.2531239,85.118,85.085,0.58065611]
[1771732738046,0.25179763,85.116,85.085,0.58065611]
[1771732743631,11.74881043,85.115,85.085,0.58065611]
[1771732743838,0.25029661,85.124,85.087,0.58065611]
[1771732745155,11.74750253,85.125,85.091,0.58065611]
[1771732745337,11.99732263,85.125,85.091,0.58065611]
[1771732745661,0.2498201,85.124,85.091,0.58065611]
[1771732747161,11.74770626,85.123,85.092,0.58065611]
[1771732749269,0.24890434,85.123,85.092,0.58065611]
[1771732751169,11.74784427,85.122,85.092,0.58065611]
[1771732751766,11.99585127,85.122,85.092,0.58065611]
[1771732754371,2.97195833,85.13,85.094,0.57918856]
[1771732754570,0.24737668,85.149,85.111,0.57918856]
[1771732754775,0.24737668,85.139,85.111,0.57918856]
[1771732755476,0.5757163,85.129,85.093,11.75184797]
[1771732755863,2.97195833,85.12,85.093,11.75184797]
[1771732756067,0.5757163,85.119,85.093,11.75184797]
[1771732757469,0.5757163,85.119,85.094,0.57918856]
[1771732761583,0.5757163,85.119,85.096,0.57918856]
[1771732766678,0.5757163,85.119,85.097,11.75129558]
[1771732766878,0.5757163,85.119,85.098,0.57918856]
[1771732767174,0.5757163,85.126,85.101,0.57918856]
[1771732770380,0.5757163,85.126,85.103,0.57918856]
[1771732771981,0.5757163,85.126,85.104,11.750329]
[1771732772161,0.5757163,85.126,85.105,0.57918856]
[1771732772981,0.5757163,85.135,85.105,0.57918856]
[1771732773864,0.5757163,85.135,85.106,11.75005287]
[1771732774167,0.5757163,85.135,85.107,0.57918856]
[1771732775282,0.5157163,85.135,85.107,0.57918856]
[1771732776185,0.5157163,85.135,85.109,0.57918856]
[1771732776985,11.74420918,85.149,85.11,2.97195833]
[1771732777180,0.5757163,85.148,85.111,0.57918856]
[1771732778578,0.5757163,85.148,85.113,0.5746108]
[1771732781981,0.5757163,85.148,85.115,0.5746108]
[1771732784078,0.5757163,85.148,85.117,0.5746108]
[1771732787187,0.5662417,85.153,85.121,0.5746108]
[1771732790591,2.97195833,85.14,85.107,11.74981159]
[1771732790888,0.5662417,85.139,85.108,0.5746108]
[1771732794092,11.74563649,85.138,85.108,0.5746108]
[1771732794276,0.5662417,85.137,85.108,0.5746108]
[1771732796994,0.5662417,85.142,85.11,0.5746108]
[1771732797198,0.5662417,85.142,85.111,0.5746108]
[1771732800195,0.5662417,85.142,85.113,0.5746108]
[1771732800395,0.5662417,85.139,85.113,0.5746108]
[1771732802611,0.5662417,85.139,85.087,8.25790821]
[1771732802612,0.5662417,85.129,85.099,0.5746108]
[1771732804808,0.5662417,85.129,85.101,0.5746108]
[1771732805101,0.5662417,85.137,85.101,0.5746108]
[1771732806306,0.5662417,85.169,85.131,0.5746108]
[1771732806605,11.74172994,85.167,85.141,0.5746108]
[1771732806802,0.6662417,85.17,85.141,0.5746108]
[1771732807109,0.1,85.17,85.151,0.5746108]
[1771732812190,0.1,85.17,85.153,0.53422707]
[1771732819415,0.1,85.17,85.151,11.7437693]
[1771732819416,0.1,85.17,85.155,0.56995126]
[1771732825614,0.55772313,85.179,85.157,0.56995126]
[1771732830022,11.74012068,85.178,85.157,0.56995126]
[1771732830225,0.55772313,85.177,85.157,0.56995126]
[1771732839538,0.55772313,85.177,85.134,29.36526492]
[1771732839539,0.52220844,85.169,85.13,2.96747898]
[1771732840541,0.52220844,85.167,85.13,2.96747898]
[1771732840718,0.52220844,85.167,85.131,11.74660229]
[1771732841327,0.52220844,85.167,85.132,0.54510272]
[1771732843035,0.52220844,85.165,85.134,0.54510272]
[1771732845341,11.74205063,85.164,85.134,0.54510272]
[1771732845546,0.52220844,85.163,85.134,0.54510272]
[1771732848720,0.52220844,85.161,85.134,0.54510272]
[1771732850133,0.52220844,85.161,85.136,0.54510272]
[1771732850341,0.52220844,85.178,85.141,0.54510272]
[1771732850842,0.52220844,85.176,85.151,0.54510272]
[1771732854636,0.52220844,85.174,85.151,0.54510272]
[1771732855243,11.74053419,85.175,85.14,2.96747898]
[1771732855244,0.52220844,85.175,85.153,0.54510272]
[1771732855438,0.52220844,85.179,85.153,0.54510272]
[1771732861040,0.52220844,85.179,85.155,0.54510272]
[1771732864954,0.52220844,85.177,85.155,0.54510272]
[1771732878277,0.52220844,85.177,85.161,0.55136194]
[1771732878482,0.1,85.18,85.161,0.55136194]
[1771732879293,0.63812756,85.18,85.161,0.55136194]
[1771732904808,0.55381571,85.178,85.156,0.51508576]
[1771732930710,0.1,85.19,85.161,0.5422208]
[1771732931019,0.63389382,85.19,85.171,0.5422208]
[1771732933729,12.27462821,85.189,85.171,0.5422208]
[1771732934028,0.53602347,85.188,85.171,0.5422208]
[1771732936336,0.1,85.2,85.173,0.50093731]
[1771732937123,3.06715468,85.2,85.161,0.50093731]
[1771732938021,0.1,85.2,85.171,0.50093731]
[1771732938223,0.53602347,85.199,85.171,0.50093731]
[1771732940126,0.53602347,85.199,85.172,11.74094772]
[1771732940333,0.53602347,85.199,85.173,0.50093731]
[1771732941723,0.53602347,85.197,85.173,0.50093731]
[1771732947139,0.53602347,85.195,85.163,11.74210173]
[1771732949244,0.53602347,85.193,85.164,0.50093731]
[1771732951237,0.1,85.2,85.173,0.50093731]
[1771732953136,0.53602347,85.199,85.173,0.50093731]
[1771732953326,0.53602347,85.199,85.175,0.50093731]
[1771732961044,0.51527286,85.203,85.176,11.74039635]
[1771732961243,0.51527286,85.203,85.181,0.55058837]
[1771732962554,0.51527286,85.203,85.183,8.9e-07]
[1771732971159,0.1,85.21,85.183,8.9e-07]
[1771732971367,0.1,85.23,85.186,0.55058837]
[1771732971368,0.51527286,85.226,85.186,0.55058837]
[1771732971547,0.51527286,85.228,85.191,0.55058837]
[1771732972559,0.51527286,85.226,85.191,0.55058837]
[1771732973850,0.51527286,85.226,85.193,0.55058837]
[1771732974966,0.1,85.24,85.221,0.55058837]
[1771732975463,0.1,85.26,85.237,0.55058837]
[1771732975651,0.1,85.26,85.251,0.55058837]
[1771732976161,0.1,85.26,85.173,46.96278294]
[1771732976162,0.51527286,85.259,85.24,2.96715468]
[1771732976354,0.1,85.26,85.24,2.96715468]
[1771732976863,0.1,85.26,85.241,11.73144378]
[1771732977959,0.1,85.26,85.241,11.94911775]
[1771732978445,0.1,85.26,85.242,0.21909432]
[1771732978640,0.51527286,85.271,85.251,0.21909432]
[1771732978854,0.61527286,85.27,85.251,0.21909432]
[1771732979639,0.61527286,85.27,85.251,0.12058138]
[1771732979864,0.1,85.27,85.251,0.12058138]
[1771732981054,0.5526881,85.279,85.261,0.12203436]
[1771732981444,0.1,85.28,85.261,0.12203436]
[1771732982865,0.1,85.28,85.27,8.75e-06]
[1771732983240,0.07369007,85.28,85.271,0.02653177]
[1771732983961,0.56584307,85.296,85.271,0.02653177]
[1771732984266,0.56584307,85.296,85.28,2.96715468]
[1771732984846,0.56584307,85.296,85.27,2.96715468]
[1771732985046,0.56584307,85.296,85.254,0.28432314]
[1771732985252,0.56584307,85.296,85.27,2.96715468]
[1771732986066,0.56584307,85.296,85.28,2.96715468]
[1771732986265,0.56584307,85.313,85.28,14.69314097]
[1771732986569,0.56584307,85.331,85.3,2.96715468]
[1771732986770,0.56584307,85.331,85.31,2.96715468]
[1771732987463,0.56584307,85.33,85.3,2.96715468]
[1771732988949,0.56584307,85.33,85.28,32.28235167]
[1771732988950,17.43184205,85.338,85.31,2.96715468]
[1771732989149,16.86599898,85.338,85.32,2.96715468]
[1771732989874,16.86599898,85.338,85.32,2.9555498]
[1771732990772,0.56584307,85.337,85.307,11.72231625]
[1771732990968,2.9555498,85.33,85.288,11.72497889]
[1771732991169,28.58411823,85.338,85.31,2.9555498]
[1771732991170,0.56584307,85.336,85.31,2.9555498]
[1771732994169,0.56584307,85.334,85.3,2.9555498]
[1771732995567,0.56584307,85.334,85.301,11.72319199]
[1771732998166,0.56584307,85.334,85.301,41.03117196]
[1771732999661,0.56584307,85.334,85.301,11.72319199]
[1771733001079,16.86599898,85.338,85.302,0.28432314]
[1771733001368,16.86599898,85.338,85.31,2.9555498]
[1771733001783,17.43184205,85.338,85.31,2.9555498]
[1771733001956,0.56584307,85.337,85.31,2.9555498]
[1771733004873,0.56584307,85.337,85.311,11.72181781]
[1771733006178,16.86599898,85.338,85.32,2.9555498]
[1771733006766,0.56584307,85.337,85.31,2.9555498]
[1771733007062,16.86599898,85.338,85.31,2.9555498]
[1771733008163,16.86599898,85.338,85.311,11.72181781]
[1771733008358,16.86599898,85.338,85.32,2.9555498]
[1771733008779,0.1,85.35,85.33,2.9555498]
[1771733010271,0.1,85.35,85.332,0.28432314]
[1771733010582,0.56584307,85.349,85.331,11.71907044]
[1771733010761,0.1,85.35,85.331,11.71907044]
[1771733011184,2.9555498,85.38,85.341,0.09132921]
[1771733011482,2.9555498,85.38,85.331,41.01674654]
[1771733011483,2.9555498,85.39,85.351,0.09079532]
[1771733012076,11.71111033,85.389,85.352,0.09079532]
[1771733012983,11.71111033,85.389,85.353,0.09026717]
[1771733013164,0.55589755,85.399,85.361,0.09026717]
[1771733014179,2.9555498,85.39,85.361,11.80521896]
[1771733014385,0.55589755,85.389,85.361,11.80521896]
[1771733014772,0.55589755,85.389,85.371,0.08922777]
[1771733015080,2.9555498,85.41,85.371,0.08922777]
[1771733015081,0.55589755,85.396,85.371,0.08922777]
[1771733015982,0.55589755,85.396,85.38,2.9555498]
[1771733016161,0.55589755,85.407,85.38,2.9555498]
[1771733016357,0.55589755,85.407,85.373,0.08871495]
[1771733017167,0.55589755,85.406,85.363,0.0882083]
[1771733017380,0.55589755,85.399,85.36,2.9555498]
[1771733017768,0.55589755,85.389,85.335,0.08770267]
[1771733017975,0.563522,85.387,85.351,11.71632435]
[1771733019785,0.563522,85.387,85.36,2.9555498]
[1771733021178,0.563522,85.385,85.36,2.9555498]
[1771733021780,0.563522,85.385,85.356,11.71560301]
[1771733023695,0.563522,85.383,85.352,0.08436319]
[1771733023992,0.563522,85.383,85.351,11.71632435]
[1771733024292,0.563522,85.383,85.344,11.71719408]
[1771733024592,0.563522,85.379,85.341,0.08436319]
[1771733024892,0.563522,85.379,85.35,2.9555498]
[1771733028087,0.563522,85.377,85.35,2.9555498]
[1771733029374,0.563522,85.377,85.345,0.08391764]
[1771733030986,0.563522,85.375,85.34,3.03685566]
[1771733031297,0.563522,85.375,85.341,0.08130586]
[1771733033788,11.71316794,85.374,85.341,0.08130586]
[1771733033997,0.563522,85.373,85.341,0.08130586]
[1771733034691,0.563522,85.373,85.341,11.71769723]
[1771733034900,0.563522,85.373,85.342,0.07966291]
[1771733036805,0.563522,85.359,85.293,11.72429155]
[1771733037103,0.563522,85.359,85.294,8.25790821]
[1771733037297,0.563522,85.359,85.297,3.69383402]
[1771733038587,2.9555498,85.36,85.321,11.72044397]
[1771733038588,0.563522,85.357,85.321,11.72044397]
[1771733042303,11.71563803,85.356,85.321,11.72044397]
[1771733042496,0.563522,85.355,85.321,11.72044397]
[1771733044881,0.563522,85.353,85.321,11.72044397]
[1771733046705,0.563522,85.351,85.321,11.72044397]
[1771733051122,0.56177554,85.349,85.321,11.72044397]
[1771733054108,12.2776629,85.355,85.33,2.95565511]
[1771733054909,11.71588736,85.355,85.33,2.95565511]
[1771733055116,0.56177554,85.354,85.33,2.95565511]
[1771733055328,11.71604981,85.353,85.33,2.95565511]
[1771733055611,12.27782535,85.353,85.33,2.95565511]
[1771733055799,12.27782535,85.353,85.321,11.72044397]
[1771733057314,0.56177554,85.352,85.321,11.72044397]
[1771733066016,0.56177554,85.352,85.33,2.95565511]
[1771733075234,11.71632435,85.351,85.32,2.95565511]
[1771733075540,0.56177554,85.35,85.32,2.95565511]
[1771733077722,0.56177554,85.35,85.321,11.72044397]
[1771733086928,3.51743065,85.35,85.321,11.72044397]
[1771733087134,0.56177554,85.349,85.321,11.72044397]
[1771733096145,11.71673618,85.348,85.321,11.72044397]
[1771733096346,0.56177554,85.347,85.321,11.72044397]
[1771733098950,0.56177554,85.345,85.312,8.25790821]
[1771733099157,0.56177554,85.345,85.31,2.95565511]
[1771733100540,2.95565511,85.34,85.303,11.72282942]
[1771733100741,0.56177554,85.339,85.303,11.72282942]
[1771733101144,0.56177554,85.339,85.282,104.7]
[1771733101145,0.56177554,85.329,85.293,11.72421054]
[1771733101958,0.56177554,85.309,85.231,8.25790821]
[1771733102136,0.56177554,85.299,85.25,2.95565511]
[1771733102339,0.56177554,85.289,85.25,2.95565511]
[1771733103250,0.56177554,85.289,85.195,4.69621367]
[1771733103453,0.56177554,85.289,85.25,2.95565511]
[1771733104334,0.56177554,85.287,85.25,2.95565511]
[1771733105262,0.56177554,85.279,85.244,64.49094026]
[1771733106470,0.56177554,85.277,85.244,64.49094026]
[1771733107045,3.69383402,85.334,85.271,0.50102463]
[1771733107245,2.95565511,85.32,85.28,2.95565511]
[1771733107450,2.95565511,85.31,85.279,0.50102463]
[1771733109063,0.5143045,85.307,85.279,0.50102463]
[1771733112065,0.52845163,85.305,85.279,0.50102463]
[1771733113867,0.52845163,85.303,85.279,0.50102463]
[1771733114953,11.72305455,85.302,85.279,0.50102463]
[1771733115163,0.52845163,85.301,85.279,0.50102463]
[1771733117064,0.52845163,85.299,85.279,0.50102463]
[1771733118256,0.52845163,85.297,85.271,0.48465633]
[1771733128073,11.7194848,85.328,85.281,0.48465633]
[1771733128280,11.7194848,85.328,85.272,11.7271789]
[1771733128281,0.52845163,85.309,85.272,11.7271789]
[1771733128453,0.52845163,85.309,85.273,0.48465633]
[1771733129281,0.52845163,85.307,85.275,0.48465633]
[1771733131173,0.52845163,85.307,85.281,0.48465633]
[1771733134186,0.52845163,85.312,85.281,0.48465633]
[1771733136189,29.29870616,85.328,85.281,0.48465633]
[1771733136190,0.52845163,85.31,85.281,0.48465633]
[1771733138583,0.47288409,85.308,85.281,0.48465633]
[1771733139690,0.47288409,85.306,85.281,0.48465633]
[1771733146194,0.47288409,85.306,85.283,0.47920098]
[1771733177715,0.50235713,85.304,85.275,11.72668014]
[1771733178099,0.50235713,85.304,85.28,2.95832881]
[1771733178299,0.50235713,85.304,85.28,3.42184305]
[1771733179101,0.50235713,85.304,85.281,0.46351424]
[1771733192718,0.50235713,85.304,85.261,29.32147872]
[1771733192719,0.50235713,85.327,85.295,0.14216157]
[1771733193025,0.50235713,85.327,85.31,2.95832881]
[1771733194612,0.50235713,85.327,85.31,3.41928641]
[1771733195804,0.50235713,85.327,85.311,0.46069649]
[1771733196920,0.50235713,85.342,85.321,0.46043838]
[1771733197226,0.50235713,85.342,85.301,0.46043838]
[1771733197924,0.50235713,85.34,85.303,0.46018323]
[1771733199914,0.49048901,85.338,85.305,0.45943523]
[1771733202431,0.49048901,85.338,85.306,11.72250486]
[1771733202640,0.49048901,85.338,85.307,0.45871272]
[1771733206242,0.49048901,85.338,85.311,0.45801481]
[1771733209534,0.49048901,85.336,85.308,11.72223003]
[1771733209840,0.49048901,85.336,85.309,0.45712111]
[1771733212747,0.49048901,85.334,85.305,0.45647742]
[1771733213438,0.49048901,85.334,85.311,0.45626777]
[1771733214941,0.49048901,85.332,85.302,0.45606052]
[1771733215319,2.95832881,85.32,85.279,0.45585566]
[1771733215523,0.49048901,85.319,85.281,0.45585566]
[1771733216647,0.49048901,85.317,85.285,0.45565315]
[1771733217642,0.49048901,85.315,85.286,12.18070681]
[1771733218939,0.49048901,85.315,85.287,0.45525507]
[1771733220753,2.95832881,85.32,85.282,0.45486609]
[1771733220754,0.49048901,85.313,85.282,0.45486609]
[1771733221045,0.49048901,85.309,85.271,0.45486609]
[1771733221254,41.0249197,85.314,85.267,0.45486609]
[1771733221255,0.49048901,85.299,85.267,0.45486609]
[1771733221439,0.49048901,85.289,85.262,0.45467495]
[1771733221637,0.49048901,85.289,85.26,0.2]
[1771733224939,0.49048901,85.287,85.26,0.2]
[1771733226733,0.49048901,85.285,85.26,0.2]
[1771733229441,0.4849522,85.283,85.26,0.2]
[1771733230838,0.4849522,85.279,85.248,0.45288018]
[1771733231035,0.4849522,85.279,85.243,0.45288018]
[1771733232057,0.46601938,85.277,85.243,0.45288018]
[1771733234153,11.72662882,85.276,85.243,0.45288018]
[1771733234356,0.46601938,85.275,85.243,0.45288018]
[1771733235963,0.46601938,85.273,85.243,0.45288018]
[1771733240547,0.46601938,85.271,85.243,0.45288018]
[1771733245558,11.72745396,85.27,85.243,0.45288018]
[1771733245867,0.46601938,85.269,85.243,0.45288018]